fUSD/lending_fUSD_20240501
["ID","MTS","AMOUNT","RATE_DAILY","PERIOD"]
[325182714,1714552240396,-2954.0,0.0001299,26]
[325182715,1714552240406,-150.0,0.00012993,2]
[325182718,1714552240415,-150.0,0.00012994,2]
[325182719,1714552240425,-1000.0,0.00012996,2]
[325182722,1714552240434,-1000.0,0.00012996,2]
[325182723,1714552240443,-1000.0,0.00012996,2]
[325182725,1714552240454,-1000.0,0.00012996,2]
[325182727,1714552240464,-1000.0,0.00012996,2]
[325182730,1714552240473,-1000.0,0.00012996,2]
[325182732,1714552240483,-1000.0,0.00012996,2]
[325182734,1714552240491,-1000.0,0.00012996,2]
[325182736,1714552240500,-1000.0,0.00012996,2]
[325182738,1714552240510,-1000.0,0.00012996,2]
[325182740,1714552240519,-1000.0,0.00012996,2]
[325182741,1714552240528,-1000.0,0.00012996,2]
[325182743,1714552240537,-1000.0,0.00012996,2]
[325182745,1714552240546,-1082.0,0.00012996,2]
[325182747,1714552240556,-155.62176324,0.00012996,2]
[325182750,1714552240566,-1667.16113497,0.00012996,2]
[325182752,1714552240580,-155.98401445,0.00012996,2]
[325182754,1714552240589,-256.88507236,0.00012996,2]
[325182755,1714552240598,-247.72867281,0.00012996,2]
[325182757,1714552240607,-155.37517047,0.00012996,2]
[325182760,1714552240617,-155.62109797,0.00012996,2]
[325182761,1714552240626,-1999.88179462,0.00012996,2]
[325182763,1714552240636,-2999.41731454,0.00012996,2]
[325182765,1714552240646,-621.84015726,0.00012996,2]
[325182768,1714552240655,-413.06779798,0.00012996,2]
[325182769,1714552240666,-214.02042905,0.00012996,2]
[325182772,1714552240676,-497.68349969,0.00012996,2]
[325182773,1714552240685,-156.08581283,0.00012996,2]
[325182776,1714552240694,-264.71106287,0.00012996,2]
[325182778,1714552240707,-155.18648239,0.00012996,2]
[325182780,1714552240716,-4000.0,0.00012996,2]
[325182781,1714552240725,-155.85257639,0.00012996,2]
[325182783,1714552240735,-1068.28892115,0.00012996,2]
[325182785,1714552240744,-155.0,0.00012996,2]
[325182787,1714552240753,-155.0,0.00012996,2]
[325182789,1714552240762,-1137.4885115,0.00012996,2]
[325182791,1714552240772,-171.25160006,0.00012996,2]
[325182793,1714552240781,-35.90412779,0.00012996,2]
[325182796,1714552240793,-2266.21413518,0.00012996,2]
[325182798,1714552240802,-190.07153493,0.00012996,2]
[325182800,1714552240811,-1559.39465,0.00012996,2]
[325182802,1714552240820,-317.43976768,0.00012996,2]
[325182804,1714552240833,-445.49913782,0.00012996,2]
[325182806,1714552240841,-155.45277127,0.00012996,2]
[325182808,1714552240850,-1000.0,0.00012996,2]
[325182810,1714552240860,-3040.85221247,0.00012996,2]
[325182812,1714552240869,-2341.91451243,0.00012996,2]
[325182814,1714552240878,-973.46705358,0.00012996,2]
[325182816,1714552240887,-168.1135179,0.00012996,2]
[325182818,1714552240896,-155.07091545,0.00012996,2]
[325182820,1714552240905,-327.24491788,0.00012996,2]
[325182822,1714552240914,-238.23985667,0.00012996,2]
[325182824,1714552240925,-371.69231441,0.00012996,2]
[325182826,1714552240935,-205.83753019,0.00012996,2]
[325182828,1714552240944,-538.41443529,0.00012996,2]
[325182830,1714552240954,-9869.77818624,0.00012997,2]
[325182831,1714552240963,-317.77309168,0.00012998,2]
[325182834,1714552240973,-276.4404,0.00012998,2]
[325182835,1714552240982,-155.1169135,0.00012998,2]
[325182837,1714552240991,-5402.49126916,0.00012998,2]
[325182842,1714552241024,-2433.93165,0.00012998,2]
[325182844,1714552241036,-475.86473686,0.00012998,2]
[325182846,1714552241047,-424.0670067,0.00012998,2]
[325182849,1714552241060,-362.60533422,0.00012998,2]
[325182851,1714552241071,-468.25265996,0.00012998,2]
[325182853,1714552241087,-1005.51933,0.00012998,2]
[325182855,1714552241098,-5781.88067283,0.00012998,2]
[325183026,1714552242693,-1129.10829927,0.00012871,2]
[325183029,1714552242704,-117.52499,0.00012871,2]
[325183032,1714552242714,-165.69093891,0.00012998,2]
[325183046,1714552242797,-3990.48650001,0.00012998,2]
[325183049,1714552242809,-569.44888,0.00012998,2]
[325183061,1714552242847,-2268.28936,0.00012998,2]
[325183067,1714552242859,-1745.34763691,0.00012998,2]
[325183072,1714552242870,-285.285,0.00012998,2]
[325183077,1714552242883,-17100.0,0.00012998,2]
[325183082,1714552242898,-28766.50000002,0.00012998,2]
[325183096,1714552242959,-17164.81155895,0.00012998,2]
[325183102,1714552242971,-1589.5,0.00012998,2]
[325183105,1714552242983,-463.93419016,0.00012998,2]
[325183144,1714552243122,-848.46,0.00012998,2]
[325183148,1714552243134,-528.10868612,0.00012998,2]
[325183152,1714552243145,-7062.5,0.00012998,2]
[325183156,1714552243158,-1388.46629895,0.00012998,2]
[325183163,1714552243178,-4714.72854237,0.00012998,2]
[325183169,1714552243190,-1138.82,0.00012998,2]
[325183178,1714552243227,-88932.0716633,0.00012998,2]
[325183180,1714552243239,-747.1658018,0.00012998,2]
[325183182,1714552243250,-4433.464,0.00012998,2]
[325183186,1714552243261,-768.68518293,0.00012998,2]
[325183188,1714552243271,-269.20238846,0.00012998,2]
[325183190,1714552243282,-1608.83127,0.00012998,2]
[325183192,1714552243293,-71243.51581545,0.00012998,2]
[325183374,1714552245751,-177809.89862025,0.00012998,2]
[325183383,1714552245774,-260.67778416,0.00012998,2]
[325183388,1714552245785,-2850.0,0.00012998,2]
[325183392,1714552245796,-1143.4360338,0.00012998,2]
[325183398,1714552245808,-1269.79166444,0.00012998,2]
[325183404,1714552245819,-329.40235786,0.00012998,2]
[325183490,1714552246743,-624.56983749,0.00012879,2]
[325183491,1714552246755,-290.49579344,0.00012879,2]
[325183492,1714552246766,-331.56765834,0.00012879,2]
[325183493,1714552246776,-14325.23978926,0.00012998,2]
[325183494,1714552246798,-509.63565291,0.00012998,2]
[325183495,1714552246809,-480.16982061,0.00012998,2]
[325183496,1714552246820,-1719.783198,0.00012998,2]
[325183497,1714552246833,-314.34687557,0.00012998,2]
[325183498,1714552246848,-572.484124,0.00012998,2]
[325183499,1714552246859,-566.66,0.00012998,2]
[325183500,1714552246967,-300.0,0.00012,4]
[325183501,1714552246977,-18179.50888952,0.00012998,2]
[325183502,1714552246987,-5852.08008115,0.00012999,2]
[325183503,1714552246996,-150.01,0.00012999,2]
[325183504,1714552247005,-1424.66773418,0.00012999,3]
[325183505,1714552247015,-1424.66773417,0.00012999,3]
[325183506,1714552247024,-1503.925,0.00012999,2]
[325183507,1714552247034,-772.31384023,0.00012999,3]
[325183508,1714552247044,-2389.0,0.00013,2]
[325183509,1714552247053,-8123.76260075,0.00013,2]
[325183510,1714552247066,-18690.00003896,0.00013,2]
[325183511,1714552247079,-85319.99999975,0.00013,2]
[325183512,1714552247096,-3150.39333094,0.00013,2]
[325183513,1714552247107,-2004.03,0.00013,2]
[325183514,1714552247127,-252.30468344,0.00013,2]
[325183515,1714552247138,-828.46681849,0.00013,2]
[325183516,1714552247149,-547.84176427,0.00013,2]
[325183518,1714552247163,-52211.86152249,0.00013,2]
[325183520,1714552247174,-6573.59869803,0.00013,2]
[325183521,1714552247186,-227539.99999994,0.00013,2]
[325183522,1714552247197,-600.0,0.00013,2]
[325183523,1714552247208,-28495.800534,0.00013,2]
[325183525,1714552247219,-115000.0,0.00013,2]
[325183526,1714552247234,-5714.7,0.00013,2]
[325183527,1714552247245,-48338.14978477,0.00013,2]
[325183528,1714552247255,-862.575,0.00013,2]
[325183529,1714552247266,-365.9968,0.00013,2]
[325183530,1714552247277,-729.84447546,0.00013,2]
[325183541,1714552589355,-155.0,0.00011789,2]
[325183542,1714552589377,-216.22293644,0.0001179,2]
[325183543,1714552589404,-3002.52973088,0.00011793,2]
[325183544,1714552589428,-445.15,0.00011794,2]
[325183550,1714552652603,250.0,0.0001185,2]
[325183551,1714552671017,408.84785113,0.00011794,2]
[325183552,1714552682389,179.79467674,0.00011794,2]
[325183553,1714552690811,412.3818153,0.0001185,2]
[325183554,1714552692794,157.63,0.00011809,2]
[325183555,1714552700358,97.44298951,0.0001185,2]
[325183575,1714553432357,-155.0,0.00011503,2]
[325183576,1714553432366,-3747.17262218,0.00011503,2]
[325183577,1714553432378,-380.04295626,0.00011503,2]
[325183578,1714553432389,-5361.4371745,0.00011503,2]
[325183579,1714553432513,-3046.32626526,0.00011503,2]
[325183590,1714553438638,-6920.39165244,0.00011503,2]
[325183591,1714553438649,-250.0,0.00011504,2]
[325183592,1714553438658,-2955.77,0.00011523,2]
[325183593,1714553438668,-4835.38,0.00011607,2]
[325183594,1714553438679,-167.11,0.00011732,2]
[325183595,1714553438690,-716.50081616,0.00011747,2]
[325183596,1714553438703,-426.26,0.00011779,2]
[325183597,1714553438713,-150.0,0.00011836,2]
[325183598,1714553438724,-82.35168723,0.0001185,2]
[325183599,1714553438733,-6701.10006999,0.00011999,2]
[325183600,1714553438744,-2595.15156388,0.00011999,2]
[325183601,1714553438754,-465.33,0.00012,2]
[325183602,1714553438764,-2450.0,0.00012,3]
[325183603,1714553438774,-5000.0,0.00012,2]
[325183604,1714553438783,-300.0,0.00012,4]
[325183605,1714553438792,-894.24,0.000121,2]
[325183606,1714553438802,-700.0,0.000121,4]
[325183607,1714553438810,-4880.75741881,0.00012198,2]
[325183608,1714553438820,-1000.0,0.000122,4]
[325183609,1714553438829,-1400.0,0.000123,4]
[325183610,1714553438838,-1800.0,0.000124,4]
[325183611,1714553438847,-300.0,0.000125,4]
[325183612,1714553438857,-150.0,0.00012567,2]
[325183613,1714553438866,-300.0,0.000126,4]
[325183614,1714553438875,-150.0,0.00012648,2]
[325183615,1714553438885,-1000.0,0.0001268,2]
[325183616,1714553438895,-300.0,0.000127,4]
[325183618,1714553438905,-155.0,0.000127,2]
[325183620,1714553438914,-150.0,0.00012731,2]
[325183622,1714553438923,-150.0,0.00012735,2]
[325183624,1714553438933,-150.0,0.00012744,2]
[325183626,1714553438942,-150.0,0.0001275,2]
[325183628,1714553438951,-1500.0,0.00012754,2]
[325183630,1714553438959,-150.0,0.00012765,2]
[325183632,1714553438971,-150.0,0.00012765,2]
[325183634,1714553438980,-150.0,0.00012773,2]
[325183636,1714553438989,-150.0,0.0001279,2]
[325183638,1714553438999,-150.0,0.00012792,2]
[325183640,1714553439008,-300.0,0.000128,4]
[325183642,1714553439017,-311.65832231,0.00012859,2]
[325183644,1714553439026,-3496.71037598,0.00012862,2]
[325183645,1714553439036,-311.65832231,0.00012869,2]
[325183646,1714553439046,-155.39633959,0.0001287,2]
[325183648,1714553439055,-500.0,0.00012879,2]
[325183650,1714553439064,-311.65832231,0.0001288,2]
[325183652,1714553439073,-284913.03610605,0.0001288,2]
[325183656,1714553439099,-2861.20802616,0.0001288,2]
[325183658,1714553439110,-329.5347003,0.0001288,2]
[325183660,1714553439122,-1580.02066219,0.0001288,2]
[325183664,1714553439149,-11281.41034226,0.0001288,2]
[325183666,1714553439160,-5140.3720589,0.0001288,2]
[325183669,1714553439171,-57161.0,0.0001288,2]
[325183794,1714553440251,-3999.0,0.0001288,2]
[325183798,1714553440263,-2858.95,0.0001288,2]
[325183811,1714553440369,-500.0,0.0001288,2]
[325183841,1714553440645,-431.355,0.0001288,2]
[325183846,1714553440680,-573.15889685,0.0001288,2]
[325183848,1714553440691,-387.09501446,0.0001288,2]
[325183850,1714553440702,-480.758087,0.0001288,2]
[325184015,1714553443286,-668.85673974,0.0001288,2]
[325184017,1714553443298,-617.91615387,0.0001288,2]
[325184020,1714553443361,-1820.14160717,0.0001288,2]
[325184021,1714553443372,-440.93688878,0.0001288,2]
[325184028,1714553444702,-500.32600203,0.0001288,2]
[325184029,1714553444713,-809740.74841711,0.0001288,2]
[325184030,1714553444725,-150.0,0.00012883,2]
[325184031,1714553444734,-150.0,0.00012885,2]
[325184032,1714553444743,-7500.0,0.00012888,2]
[325184033,1714553444752,-311.65832231,0.0001289,2]
[325184034,1714553444761,-1000.0,0.00012896,2]
[325184035,1714553444770,-500.0,0.00012896,2]
[325184036,1714553444779,-320.76,0.00012899,2]
[325184037,1714553444788,-172.4746835,0.000129,2]
[325184038,1714553444796,-152.10763622,0.000129,2]
[325184039,1714553444805,-900.0,0.000129,4]
[325184040,1714553444814,-171.94166835,0.000129,2]
[325184041,1714553444823,-311.65832231,0.000129,2]
[325184042,1714553444831,-171.94166835,0.000129,2]
[325184043,1714553444840,-171.94166835,0.000129,2]
[325184044,1714553444849,-171.94166835,0.000129,2]
[325184045,1714553444858,-171.94166835,0.000129,2]
[325184046,1714553444867,-171.94166835,0.000129,2]
[325184047,1714553444875,-171.94166835,0.000129,2]
[325184048,1714553444884,-562.73626014,0.000129,2]
[325184049,1714553444893,-10000.0,0.00012906,2]
[325184050,1714553444902,-504.5,0.00012925,3]
[325184051,1714553444911,-1500.0,0.00012946,2]
[325184052,1714553444920,-150.0,0.00012951,2]
[325184053,1714553444930,-1500.0,0.00012954,2]
[325184054,1714553444938,-61632.0,0.0001298,2]
[325184055,1714553444947,-292.4820634,0.0001298,2]
[325184056,1714553444956,-292.4820634,0.0001298,2]
[325184057,1714553444965,-292.4820634,0.0001298,2]
[325184058,1714553444976,-211.0241655,0.0001298,2]
[325184059,1714553444985,-211.0241655,0.0001298,2]
[325184060,1714553444994,-211.0241655,0.0001298,2]
[325184061,1714553445003,-8023.781085,0.0001298,2]
[325184062,1714553445012,-5411.3872433,0.0001298,2]
[325184063,1714553445021,-2798.9934017,0.0001298,2]
[325184064,1714553445030,-2114.8598598,0.0001298,2]
[325184065,1714553445040,-1426.3008357,0.0001298,2]
[325184066,1714553445049,-737.7418115,0.0001298,2]
[325184067,1714553445058,-12021.4989457,0.0001298,2]
[325184068,1714553445067,-8117.9212706,0.0001298,2]
[325184069,1714553445076,-4214.3435954,0.0001298,2]
[325184070,1714553445085,-1022.6809783,0.0001298,2]
[325184071,1714553445100,-690.5997084,0.0001298,2]
[325184072,1714553445110,-358.5184385,0.0001298,2]
[325184073,1714553445118,-570.0,0.00012986,2]
[325184074,1714553445127,-292.4820634,0.00012988,2]
[325184075,1714553445136,-292.4820634,0.00012988,2]
[325184076,1714553445145,-292.4820634,0.00012988,2]
[325184077,1714553445154,-211.0241655,0.00012988,2]
[325184078,1714553445163,-211.0241655,0.00012988,2]
[325184079,1714553445172,-211.0241655,0.00012988,2]
[325184080,1714553445181,-15860.9626099,0.00012988,2]
[325184081,1714553445190,-13248.5687683,0.00012988,2]
[325184082,1714553445199,-10636.1749266,0.00012988,2]
[325184083,1714553445208,-4180.5369322,0.00012988,2]
[325184084,1714553445217,-3491.9779081,0.00012988,2]
[325184085,1714553445228,-2803.418884,0.00012988,2]
[325184086,1714553445237,-23732.2319712,0.00012988,2]
[325184087,1714553445246,-19828.654296,0.00012988,2]
[325184088,1714553445255,-15925.0766209,0.00012988,2]
[325184089,1714553445264,-2018.924788,0.00012988,2]
[325184090,1714553445272,-1686.8435181,0.00012988,2]
[325184091,1714553445282,-1354.7622482,0.00012988,2]
[325184092,1714553445290,-1000.0,0.00012989,2]
[325184093,1714553445300,-1000.0,0.00012989,2]
[325184094,1714553445309,-1000.0,0.00012989,2]
[325184095,1714553445319,-1000.0,0.00012989,2]
[325184096,1714553445328,-1000.0,0.00012989,2]
[325184097,1714553445337,-1000.0,0.00012989,2]
[325184098,1714553445346,-1000.0,0.00012989,2]
[325184099,1714553445355,-1082.0,0.00012989,2]
[325184100,1714553445363,-1000.0,0.00012989,2]
[325184101,1714553445372,-1000.0,0.00012989,2]
[325184102,1714553445381,-1000.0,0.00012989,2]
[325184103,1714553445390,-1000.0,0.00012989,2]
[325184104,1714553445399,-1000.0,0.00012989,2]
[325184105,1714553445411,-1000.0,0.00012989,2]
[325184106,1714553445423,-375.0,0.0001299,2]
[325184107,1714553445433,-171.25160006,0.00012997,2]
[325184108,1714553445442,-1137.4885115,0.00012997,2]
[325184109,1714553445451,-155.0,0.00012997,2]
[325184110,1714553445462,-155.0,0.00012997,2]
[325184111,1714553445473,-155.85257639,0.00012997,2]
[325184112,1714553445482,-1068.28892115,0.00012997,2]
[325184113,1714553445492,-156.08581283,0.00012997,2]
[325184114,1714553445503,-155.18648239,0.00012997,2]
[325184115,1714553445513,-497.68349969,0.00012997,2]
[325184116,1714553445522,-413.06779798,0.00012997,2]
[325184117,1714553445531,-264.71106287,0.00012997,2]
[325184118,1714553445541,-621.84015726,0.00012997,2]
[325184119,1714553445549,-155.37517047,0.00012997,2]
[325184120,1714553445559,-155.62109797,0.00012997,2]
[325184121,1714553445567,-2065.17558087,0.00012997,2]
[325184122,1714553445577,-256.88507236,0.00012997,2]
[325184123,1714553445586,-247.72867281,0.00012997,2]
[325184124,1714553445595,-155.98401445,0.00012997,2]
[325184125,1714553445604,-1667.16113497,0.00012997,2]
[325184126,1714553445613,-155.62176324,0.00012997,2]
[325184127,1714553445622,-214.0002672,0.00012997,2]
[325184128,1714553445631,-2940.58633766,0.00012997,2]
[325184129,1714553445640,-621.96049487,0.00012998,2]
[325184130,1714553445649,-1211.45504848,0.00012998,2]
[325184131,1714553445658,-157.050117,0.00012998,2]
[325184132,1714553445668,-157.050117,0.00012998,2]
[325184133,1714553445677,-157.050117,0.00012998,2]
[325184134,1714553445686,-157.050117,0.00012998,2]
[325184135,1714553445696,-157.050117,0.00012998,2]
[325184136,1714553445705,-154.050117,0.00012998,2]
[325184137,1714553445715,-151.050117,0.00012998,2]
[325184138,1714553445726,-292985.6523199,0.00012998,2]
[325184139,1714553445739,-36630.42310435,0.00012998,2]
[325184140,1714553445750,-1302.28445294,0.00012998,2]
[325184167,1714553446240,-240.04114196,0.00012905,2]
[325184169,1714553446249,-237487.42674197,0.00012998,2]
[325184171,1714553446259,-2202.0,0.00012999,2]
[325184173,1714553446269,-409.36988863,0.00012999,2]
[325184175,1714553446278,-1874.96200979,0.00012999,2]
[325184177,1714553446287,-200.05878826,0.00012999,2]
[325184179,1714553446297,-174.82054611,0.00012999,2]
[325184180,1714553446306,-150.01,0.00012999,2]
[325184181,1714553446316,-236.65157251,0.00012999,2]
[325184182,1714553446325,-5852.08008115,0.00012999,2]
[325184183,1714553446335,-106183.88176893,0.00012999,2]
[325184184,1714553446438,-672.35000001,0.00012999,2]
[325184185,1714553446841,-7124.4,0.00012999,2]
[325184186,1714553446927,-13864.0,0.00012999,2]
[325184187,1714553446939,-535.7718763,0.00012999,2]
[325184188,1714553446950,-554.91637973,0.00012999,2]
[325184191,1714553643301,417.83002769,0.00024,120]
[325184192,1714553646781,22956.8310394,0.00025,120]
[325184196,1714553685672,350.0,0.00025,120]
[325184238,1714554633280,-681.1998,0.000118,2]
[325184239,1714554633290,-250.0,0.00011835,2]
[325184240,1714554633299,-517.53,0.00011857,2]
[325184241,1714554633309,-172.89,0.00011861,2]
[325184242,1714554633318,-7788.25,0.00011861,2]
[325184243,1714554633327,-19205.363114,0.000119,2]
[325184244,1714554633372,-830.22886011,0.000119,2]
[325184245,1714554633389,-1389.31450141,0.000119,2]
[325184246,1714554633406,-287.055,0.000119,2]
[325184247,1714554633419,-287.94,0.000119,2]
[325184248,1714554633430,-417.06971042,0.000119,2]
[325184249,1714554633468,-685.14132927,0.000119,2]
[325184250,1714554633549,-265.78908958,0.000119,2]
[325184252,1714554633560,-5750.39611555,0.000119,2]
[325184295,1714554638730,-1349.90711029,0.000119,2]
[325184297,1714554638742,-643.18248287,0.000119,2]
[325184307,1714554638850,-648.70118642,0.000119,2]
[325184308,1714554638863,-272.32466048,0.000119,2]
[325184309,1714554638875,-493.68166636,0.000119,2]
[325184310,1714554638889,-4096.56516886,0.000119,2]
[325184311,1714554639236,-703.20536157,0.000119,2]
[325184312,1714554639248,-27804.76037121,0.000119,2]
[325184313,1714554639259,-5724.03905745,0.000119,2]
[325184317,1714554640590,-573.45,0.000119,2]
[325184318,1714554640602,-16356.51458169,0.000119,2]
[325184320,1714554642466,-4100.4399,0.000119,2]
[325184322,1714554642478,-281.186742,0.000119,2]
[325184324,1714554642490,-961.065,0.000119,2]
[325184326,1714554642500,-320.11436196,0.000119,2]
[325184328,1714554642511,-12806.53,0.000119,2]
[325184334,1714554642557,-4462.03153099,0.000119,2]
[325184336,1714554642568,-716.80060935,0.000119,2]
[325184346,1714554642651,-1148.79612607,0.000119,2]
[325184348,1714554642663,-631.18875323,0.000119,2]
[325184350,1714554642674,-496.86546677,0.000119,2]
[325184358,1714554642736,-4055.82535952,0.000119,2]
[325184468,1714554643922,-1223.7000002,0.000119,2]
[325184475,1714554644767,-12536.552906,0.000119,2]
[325184476,1714554644776,-341.0,0.00011907,2]
[325184477,1714554644784,-5000.0,0.00012,2]
[325184478,1714554644793,-167.11,0.00012007,2]
[325184479,1714554644803,-426.00001,0.00012395,2]
[325184480,1714554644812,-499.99,0.00012395,2]
[325184481,1714554644821,-300.38,0.000124,2]
[325184482,1714554644830,-151.4,0.000124,2]
[325184483,1714554644840,-419.48,0.000124,2]
[325184484,1714554644849,-5333.14,0.000125,2]
[325184485,1714554644859,-1044.24,0.000125,2]
[325184486,1714554644868,-462.4,0.00012557,3]
[325184487,1714554644877,-1313.05,0.000126,2]
[325184488,1714554644885,-150.0,0.000126,2]
[325184489,1714554644894,-414.22,0.000126,2]
[325184490,1714554644903,-414.22,0.000126,2]
[325184491,1714554644912,-3496.71037598,0.00012646,2]
[325184492,1714554644921,-414.22,0.000127,2]
[325184493,1714554644930,-155.0,0.00012733,2]
[325184494,1714554644939,-1092.35933777,0.00012739,2]
[325184495,1714554644948,-1127.73622528,0.00012739,2]
[325184496,1714554644957,-262.835,0.0001278,2]
[325184497,1714554644966,-13920.59502754,0.000128,2]
[325184498,1714554644975,-414.22,0.000128,2]
[325184499,1714554644984,-414.22,0.000128,2]
[325184500,1714554644992,-150.0,0.00012802,2]
[325184501,1714554645002,-1000.0,0.00012896,2]
[325184502,1714554645011,-500.0,0.00012896,2]
[325184503,1714554645020,-7500.0,0.00012899,2]
[325184504,1714554645029,-311.65832232,0.000129,2]
[325184505,1714554645038,-171.94166836,0.000129,2]
[325184506,1714554645047,-311.65832232,0.000129,2]
[325184507,1714554645056,-212.21969678,0.000129,2]
[325184508,1714554645064,-619.90381488,0.000129,2]
[325184509,1714554645073,-151.16530656,0.000129,2]
[325184510,1714554645082,-419.48,0.00012959,2]
[325184511,1714554645091,-377.46,0.00012959,2]
[325184512,1714554645100,-302.01,0.00012959,2]
[325184513,1714554645109,-150.0,0.00012959,2]
[325184514,1714554645118,-419.48,0.00012959,2]
[325184515,1714554645128,-150.0,0.00012959,2]
[325184516,1714554645138,-419.48,0.00012959,2]
[325184517,1714554645147,-150.0,0.00012959,2]
[325184518,1714554645157,-150.0,0.00012959,2]
[325184519,1714554645166,-419.48,0.00012959,2]
[325184520,1714554645175,-6303.38176,0.0001298,2]
[325184521,1714554645184,-151.63499927,0.00012989,2]
[325184522,1714554645193,-2954.0,0.0001299,26]
[325184523,1714554645202,-2222.99999901,0.0001299,2]
[325184524,1714554645211,-529.0261948,0.0001299,2]
[325184525,1714554645220,-3085.52585134,0.00012997,2]
[325184526,1714554645229,-155.0,0.00012998,2]
[325184527,1714554645238,-1337.96175164,0.00012998,2]
[325184528,1714554645247,-452.64726722,0.00012998,2]
[325184529,1714554645256,-1927.0,0.00012999,2]
[325184530,1714554645442,-547323.38787804,0.00012999,2]
[325184531,1714554645463,-305.552031,0.00012999,2]
[325184535,1714554646418,-9751.8462737,0.00012999,2]
[325184547,1714554646910,-1624.10752,0.00012999,2]
[325184549,1714554646921,-10534.74375531,0.00012999,2]
[325184551,1714554646933,-1579.77922764,0.00012999,2]
[325184553,1714554646947,-673.88867996,0.00012999,2]
[325184555,1714554646958,-958.98054821,0.00012999,2]
[325184653,1714555440412,10000.0,0.00025,120]
[325184659,1714555489813,200.0,0.00025,120]
[325184950,1714555831626,-582.49794291,0.00011492,2]
[325184951,1714555831636,-853.51,0.00011493,2]
[325184952,1714555831646,-156.77121027,0.0001183,2]
[325184953,1714555831656,-423.9,0.00011931,3]
[325184955,1714555831667,-167.12,0.00011999,2]
[325184956,1714555831677,-2406.91333258,0.00012,3]
[325184957,1714555831763,-43.08666742,0.00012,3]
[325184958,1714555831773,-163.76,0.0001207,2]
[325184959,1714555831784,-158.03,0.00012102,2]
[325184960,1714555831793,-158.03,0.00012105,2]
[325184961,1714555831803,-3970.90555869,0.00012107,2]
[325184962,1714555831815,-570.87217551,0.00012107,2]
[325184963,1714555831827,-458.2222658,0.00012107,2]
[325184964,1714555831837,-158.03,0.00012108,2]
[325184965,1714555831850,-2536.73,0.00012108,2]
[325184966,1714555831860,-158.03,0.00012111,2]
[325184967,1714555831870,-158.03,0.00012114,2]
[325184968,1714555831880,-158.03,0.00012117,2]
[325184969,1714555831890,-158.03,0.00012121,2]
[325184970,1714555831900,-158.03,0.00012124,2]
[325184971,1714555831910,-158.03,0.00012127,2]
[325184972,1714555831920,-46.20622159,0.0001213,2]
[325184973,1714555831932,-111.82377841,0.0001213,2]
[325184974,1714555831943,-158.03,0.00012133,2]
[325184975,1714555831953,-158.03,0.00012136,2]
[325184976,1714555831963,-158.03,0.0001214,2]
[325184977,1714555831972,-158.03,0.00012143,2]
[325184978,1714555831982,-158.03,0.00012146,2]
[325184979,1714555831992,-158.03,0.00012149,2]
[325184980,1714555832002,-158.03,0.00012152,2]
[325184981,1714555832011,-158.03,0.00012156,2]
[325184982,1714555832021,-158.03,0.00012159,2]
[325184983,1714555832030,-158.03,0.00012162,2]
[325184984,1714555832040,-150.56,0.000122,2]
[325184986,1714555832050,-150.0,0.000122,2]
[325184988,1714555832060,-419.06,0.00012378,2]
[325184990,1714555832070,-423.9,0.00012391,3]
[325184991,1714555832079,-162.57,0.00012419,2]
[325184992,1714555832089,-150.0,0.00012625,2]
[325184993,1714555832098,-419.48,0.00012678,2]
[325184994,1714555832108,-155.0,0.000127,2]
[325184995,1714555832122,-3496.71037598,0.00012729,2]
[325184996,1714555832131,-1412.97749639,0.00012739,2]
[325184997,1714555832141,-5797.25028,0.000128,2]
[325184998,1714555832151,-423.9,0.0001285,3]
[325184999,1714555832160,-803.065,0.00012869,2]
[325185000,1714555832171,-803.065,0.00012869,2]
[325185001,1714555832180,-803.065,0.00012869,2]